[Event "IIFL Wealth 4th Mumbai Open"]
[Site "Mumbai"]
[Date "2019.01.06"]
[Round "8"]
[White "Bhaskar, N S"]
[Black "Tamhankar, Siddhant"]
[Result "1-0"]
[ECO "A96"]
[WhiteElo "1463"]
[BlackElo "1704"]
[Annotator "NA"]
[PlyCount "119"]
[EventDate "2018.12.30"]
[EventType "swiss"]
[EventCountry "IND"]
[SourceTitle "playchess.com"]
[Source "ChessBase"]
[SourceQuality "1"]
[TimeControl "40/5400+30:1800+30"]

1. Nf3 {[%emt 0:00:00]} f5 {[%emt 0:00:00]} 2. d4 {[%emt 0:00:10]} e6 {[%emt 0:00:17]} 3. g3 {[%emt 0:00:23]} Nf6 {[%emt 0:00:26]} 4. Bg2 {[%emt 0:00:11]} Be7 {[%emt 0:00:07]} 5. O-O {[%emt 0:00:45]} O-O {[%emt 0:01:01]} 6. c4 {[%emt 0:00:21]} d6 {[%emt 0:00:12]} 7. Nc3 {[%emt 0:00:13]} a5 {[%emt 0:00:46]} 8. Bg5 {[%emt 0:02:36]} Ne4 {[%emt 0:02:55]} 9. Bxe7 {[%emt 0:01:01]} Qxe7 {[%emt 0:00:18]} 10. Nxe4 {[%emt 0:01:00]} fxe4 {[%emt 0:00:03]} 11. Nd2 {[%emt 0:00:08]} d5 {[%emt 0:00:15]} 12. e3 {[%emt 0:01:32]} c6 {[%emt 0:26:46]} 13. Qc2 {[%emt 0:03:58]} Bd7 {[%emt 0:18:57]} 14. f3 {[%emt 0:04:42]} exf3 {[%emt 0:00:17]} 15. Nxf3 {[%emt 0:00:11]} Be8 {[%emt 0:00:21]} 16. Ne5 {[%emt 0:01:57]} Rxf1+ {[%emt 0:00:40]} 17. Rxf1 {[%emt 0:00:02]} Nd7 {[%emt 0:00:29]} 18. Nd3 {[%emt 0:07:03]} Bg6 {[%emt 0:00:45]} 19. Qc3 {[%emt 0:00:44]} Qg5 {[%emt 0:06:30]} 20. Nf4 {[%emt 0:00:46]} Bf5 {[%emt 0:05:16]} 21. cxd5 {[%emt 0:05:36]} exd5 {[%emt 0:00:21]} 22. Qb3 {[%emt 0:00:49]} Rb8 {[%emt 0:01:40]} 23. Bxd5+ {[%emt 0:03:19]} cxd5 {[%emt 0:01:24]} 24. Qxd5+ {[%emt 0:00:06]} Kh8 {[%emt 0:00:11]} 25. e4 {[%emt 0:00:10]} Re8 {[%emt 0:25:10]} 26. Qxf5 {[%emt 0:00:48]} Qe7 {[%emt 0:01:58]} 27. e5 {[%emt 0:00:26]} Nb6 {[%emt 0:01:17]} 28. Ne6 {[%emt 0:05:01]} Nc4 {[%emt 0:02:15]} 29. Ng5 {[%emt 0:00:57]} g6 {[%emt 0:00:25]} 30. Qf6+ {[%emt 0:03:21]} Qxf6 {[%emt 0:01:02]} 31. exf6 {[%emt 0:00:10]} Nd6 {[%emt 0:00:08]} 32. f7 {[%emt 0:00:14]} Rf8 {[%emt 0:00:18]} 33. Rf6 {[%emt 0:00:09]} h6 {[%emt 0:01:00]} 34. Rxd6 {[%emt 0:00:14]} hxg5 {[%emt 0:00:10]} 35. Rd7 {[%emt 0:00:16]} b5 {[%emt 0:01:07]} 36. Rd5 {[%emt 0:01:49]} Rxf7 {[%emt 0:00:08]} 37. Rxb5 {[%emt 0:00:07]} Rd7 {[%emt 0:01:08]} 38. d5 {[%emt 0:00:07]} a4 {[%emt 0:00:18]} 39. Ra5 {[%emt 0:01:01]} Kg7 {[%emt 0:00:18]} 40. Kf2 {[%emt 0:00:00]} Rb7 {[%emt 0:00:00]} 41. d6 {[%emt 0:02:19]} Kf6 {[%emt 0:06:36]} 42. Rd5 {[%emt 0:00:31]} Rxb2+ {[%emt 0:01:01]} 43. Ke3 {[%emt 0:00:07]} Rb8 {[%emt 0:00:46]} 44. d7 {[%emt 0:00:38]} Rd8 {[%emt 0:00:15]} 45. Kd4 {[%emt 0:00:11]} Ke7 {[%emt 0:02:09]} 46. Kc5 {[%emt 0:00:12]} Rxd7 {[%emt 0:15:31]} 47. Rxd7+ {[%emt 0:00:11]} Kxd7 {[%emt 0:00:02]} 48. Kb4 {[%emt 0:00:02]} Ke6 {[%emt 0:00:12]} 49. Kxa4 {[%emt 0:00:04]} Kf5 {[%emt 0:00:06]} 50. Kb5 {[%emt 0:01:28]} Kg4 {[%emt 0:00:07]} 51. a4 {[%emt 0:00:05]} Kh3 {[%emt 0:00:15]} 52. a5 {[%emt 0:00:02]} g4 {[%emt 0:00:52]} 53. a6 {[%emt 0:00:26]} Kxh2 {[%emt 0:00:13]} 54. a7 {[%emt 0:00:10]} Kxg3 {[%emt 0:00:11]} 55. a8=Q {[%emt 0:00:12]} Kh2 {[%emt 0:00:09]} 56. Qa2+ {[%emt 0:00:27]} Kh3 {[%emt 0:00:16]} 57. Qf2 {[%emt 0:00:22]} g3 {[%emt 0:01:14]} 58. Qg1 {[%emt 0:00:02]} g5 {[%emt 0:00:09]} 59. Kc4 {[%emt 0:00:03]} g2 {[%emt 0:00:45]} 60. Kd3 1-0

[Event "IIFL Wealth 4th Mumbai Open"]
[Site "Mumbai"]
[Date "2019.01.06"]
[Round "8"]
[White "Apoorv, Kamble"]
[Black "Joel Paul G"]
[Result "1-0"]
[ECO "B01"]
[WhiteElo "1458"]
[BlackElo "1603"]
[Annotator "NA"]
[PlyCount "117"]
[EventDate "2018.12.30"]
[EventType "swiss"]
[EventCountry "IND"]
[SourceTitle "playchess.com"]
[Source "ChessBase"]
[SourceQuality "1"]
[TimeControl "40/5400+30:1800+30"]

1. e4 {[%emt 0:00:00]} d5 {[%emt 0:00:00]} 2. exd5 {[%emt 0:00:29]} Nf6 {[%emt 0:00:00]} 3. d4 {[%emt 0:00:23]} Bg4 {[%emt 0:00:00]} 4. Be2 {[%emt 0:00:42]} Bxe2 {[%emt 0:00:00]} 5. Nxe2 {[%emt 0:00:10]} Qxd5 {[%emt 0:00:00]} 6. O-O {[%emt 0:00:49]} Nc6 {[%emt 0:00:00]} 7. b3 {[%emt 0:02:11]} O-O-O {[%emt 0:00:21]} 8. c4 {[%emt 0:00:37]} Qh5 {[%emt 0:00:02]} 9. Bb2 {[%emt 0:03:26]} e6 {[%emt 0:01:15]} 10. Nd2 {[%emt 0:03:48]} Bb4 {[%emt 0:05:02]} 11. Nf3 g5 12. d5 {[%emt 0:04:14]} Qg6 {[%emt 0:03:34]} 13. Qc1 {[%emt 0:02:05]} exd5 {[%emt 0:04:36]} 14. Qxg5 {[%emt 0:04:05]} Be7 {[%emt 0:12:15]} 15. Nf4 {[%emt 0:02:09]} Qxg5 {[%emt 0:03:14]} 16. Nxg5 {[%emt 0:00:43]} Rhf8 {[%emt 0:00:01]} 17. Rae1 {[%emt 0:04:50]} d4 {[%emt 0:01:28]} 18. Nf3 {[%emt 0:06:52]} Bb4 {[%emt 0:07:19]} 19. Rd1 {[%emt 0:03:31]} Bc5 {[%emt 0:13:06]} 20. Nd3 {[%emt 0:01:05]} b6 {[%emt 0:03:34]} 21. Nde5 {[%emt 0:11:17]} Nxe5 {[%emt 0:04:35]} 22. Nxe5 {[%emt 0:00:04]} Rd6 {[%emt 0:02:56]} 23. Nd3 {[%emt 0:05:12]} a5 {[%emt 0:04:52]} 24. a3 {[%emt 0:01:04]} Rdd8 {[%emt 0:01:53]} 25. b4 {[%emt 0:01:14]} axb4 {[%emt 0:00:26]} 26. axb4 {[%emt 0:00:08]} Bd6 {[%emt 0:01:25]} 27. c5 {[%emt 0:02:27]} bxc5 {[%emt 0:00:45]} 28. bxc5 {[%emt 0:00:03]} Be7 {[%emt 0:00:22]} 29. Ra1 {[%emt 0:06:56]} Kb7 {[%emt 0:01:53]} 30. Rfb1 {[%emt 0:04:20]} Kc6 {[%emt 0:01:06]} 31. Re1 {[%emt 0:12:58]} Rfe8 {[%emt 0:07:07]} 32. Rec1 {[%emt 0:03:47]} Ne4 {[%emt 0:05:33]} 33. Ra4 {[%emt 0:05:46]} Nc3 {[%emt 0:01:26]} 34. Bxc3 {[%emt 0:04:10]} dxc3 {[%emt 0:00:04]} 35. Rxc3 {[%emt 0:00:09]} Bf6 {[%emt 0:03:32]} 36. Ra6+ {[%emt 0:00:19]} Kb5 {[%emt 0:00:04]} 37. Rxf6 {[%emt 0:00:08]} Rxd3 {[%emt 0:00:08]} 38. Rc1 {[%emt 0:00:07]} Red8 {[%emt 0:04:53]} 39. h3 {[%emt 0:01:46]} R8d7 {[%emt 0:01:35]} 40. c6 {[%emt 0:01:24]} Re7 {[%emt 0:00:01]} 41. Kh2 {[%emt 0:00:37]} Kb6 {[%emt 0:01:42]} 42. Rf4 {[%emt 0:02:03]} Rb3 {[%emt 0:02:52]} 43. Rc2 {[%emt 0:00:09]} Rb5 {[%emt 0:00:55]} 44. g4 {[%emt 0:01:58]} Rc5 {[%emt 0:00:15]} 45. Rxc5 {[%emt 0:01:11]} Kxc5 {[%emt 0:00:02]} 46. Rf6 Kd5 {[%emt 0:09:26]} 47. f4 {[%emt 0:00:49]} Re6 {[%emt 0:03:08]} 48. Rxf7 {[%emt 0:01:08]} Rxc6 {[%emt 0:00:02]} 49. Rxh7 {[%emt 0:02:36]} Ke4 {[%emt 0:00:10]} 50. Kg3 {[%emt 0:00:24]} Rc3+ {[%emt 0:00:09]} 51. Kh4 {[%emt 0:00:03]} Kxf4 {[%emt 0:00:25]} 52. Rf7+ {[%emt 0:00:06]} Ke5 {[%emt 0:00:28]} 53. g5 {[%emt 0:00:14]} c5 {[%emt 0:01:30]} 54. g6 {[%emt 0:00:31]} Ke6 {[%emt 0:00:16]} 55. Rf8 {[%emt 0:00:12]} Rc4+ {[%emt 0:05:25]} 56. Kh5 {[%emt 0:00:11]} Rc3 {[%emt 0:00:23]} 57. g7 {[%emt 0:00:35]} Rxh3+ {[%emt 0:00:22]} 58. Kg4 {[%emt 0:00:05]} Rh1 {[%emt 0:00:36]} 59. g8=Q+ {[%emt 0:00:06] Kd5} 1-0

[Event "IIFL Wealth 4th Mumbai Open"]
[Site "Mumbai"]
[Date "2019.01.06"]
[Round "8"]
[White "Amrit, Raunak"]
[Black "Shetye, Shyam"]
[Result "1/2-1/2"]
[ECO "B07"]
[WhiteElo "1410"]
[BlackElo "1685"]
[Annotator "NA"]
[PlyCount "38"]
[EventDate "2018.12.30"]
[EventType "swiss"]
[EventCountry "IND"]
[SourceTitle "playchess.com"]
[Source "ChessBase"]
[SourceQuality "1"]
[TimeControl "40/5400+30:1800+30"]

1. e4 {[%emt 0:00:00]} d6 {[%emt 0:00:00]} 2. d4 {[%emt 0:00:00]} Nf6 {[%emt 0:00:04]} 3. Nc3 {[%emt 0:00:00]} e5 {[%emt 0:00:27]} 4. dxe5 {[%emt 0:00:00]} dxe5 {[%emt 0:00:06]} 5. Qxd8+ {[%emt 0:00:00]} Kxd8 {[%emt 0:00:06]} 6. Bg5 {[%emt 0:00:06]} Bb4 {[%emt 0:06:05]} 7. Bxf6+ {[%emt 0:00:08]} gxf6 {[%emt 0:00:12]} 8. O-O-O+ {[%emt 0:00:03]} Nd7 {[%emt 0:07:24]} 9. Nge2 {[%emt 0:02:19]} c6 {[%emt 0:01:31]} 10. a3 {[%emt 0:00:47]} Bc5 {[%emt 0:02:27]} 11. f3 {[%emt 0:00:29]} Kc7 {[%emt 0:00:54]} 12. Ng3 {[%emt 0:00:19]} Nb6 {[%emt 0:01:25]} 13. Be2 {[%emt 0:07:53]} Be6 {[%emt 0:00:27]} 14. Rhf1 {[%emt 0:03:51]} Nc4 {[%emt 0:01:34]} 15. Bxc4 {[%emt 0:01:50]} Bxc4 {[%emt 0:00:09]} 16. Rh1 {[%emt 0:00:13]} Rad8 {[%emt 0:02:46]} 17. Rd5 Rd7 18. Rxd7+ {[%emt 0:01:16] Rg8 Rd8 Rxd8 [%clk 1:12:28] Rd1 [%clk 1:19:50] Rxd1+ [%clk 1:04:17] Kxd1 [%clk 1:18:02] b5 [%clk 0:59:40] Nb1 [%clk 1:14:56] a5 [%clk 0:55:25] Nd2 [%clk 1:15:00] Be6 [%clk 0:54:58] Nh5 [%clk 1:11:23] Be7 [%clk 0:54:32] Nf1 [%clk 1:09:09] f5 [%clk 0:51:59] Ng7 [%clk 1:08:21] f4 [%clk 0:45:37] Nxe6+ [%clk 1:08:23] fxe6 [%clk 0:46:01] h3 [%clk 1:08:03] a4 [%clk 0:43:16] Nh2 [%clk 1:08:25] h5 [%clk 0:43:07] Nf1 [%clk 1:08:21] Kd6 [%clk 0:43:11] Kd2 [%clk 1:06:49] Bd8 [%clk 0:39:54] b4 [%clk 1:05:38] Ke7 [%clk 0:26:34] Ke2 [%clk 1:03:55] Kf6 [%clk 0:26:02] Nd2 [%clk 1:04:18] Bb6 [%clk 0:24:37] c4 [%clk 0:58:25] Bd4 [%clk 0:23:14] cxb5 [%clk 0:57:34] cxb5 [%clk 0:23:31] h4 [%clk 0:53:59] Ke7 [%clk 0:21:59] Nb1 [%clk 0:52:54]} Kxd7 {[%emt 0:51:11] Kf1 [%clk 0:53:08] Kc6 [%clk 0:22:16] Nd2 [%clk 0:53:07] Bb6 [%clk 0:19:32]} 19. Nb1 {[%emt 0:27:01] Bd8 [%clk 0:18:24] Kg1 [%clk 1:22:33] Bxh4 [%clk 0:43:48] Kf1 [%clk 1:22:38] Bd8 [%clk 0:43:48] Kg1 [%clk 1:21:28]} Bb6 {[%emt 0:00:00] Kh2 [%clk 1:21:48] Bf2 [%clk 0:30:12] Kh3 [%clk 1:21:04] Be1 Kh2} 1/2-1/2

[Event "IIFL Wealth 4th Mumbai Open"]
[Site "Mumbai"]
[Date "2019.01.06"]
[Round "8"]
[White "Vinod, Chaturvedi"]
[Black "Shreyas, Ghadi"]
[Result "0-1"]
[ECO "E06"]
[WhiteElo "1387"]
[BlackElo "1653"]
[Annotator "NA"]
[PlyCount "72"]
[EventDate "2018.12.30"]
[EventType "swiss"]
[EventCountry "IND"]
[SourceTitle "playchess.com"]
[Source "ChessBase"]
[SourceQuality "1"]
[TimeControl "40/5400+30:1800+30"]

1. d4 {[%emt 0:00:00]} Nf6 {[%emt 0:00:00]} 2. Nf3 {[%emt 0:00:00]} e6 {[%emt 0:00:00]} 3. c4 {[%emt 0:00:21]} d5 {[%emt 0:01:08]} 4. g3 {[%emt 0:00:25]} Be7 {[%emt 0:00:18]} 5. Bg2 {[%emt 0:00:26]} O-O {[%emt 0:00:16]} 6. b3 {[%emt 0:00:25]} b6 {[%emt 0:01:51]} 7. O-O {[%emt 0:00:11]} Bb7 {[%emt 0:00:06]} 8. a3 {[%emt 0:00:06]} Nbd7 {[%emt 0:01:42]} 9. Nbd2 {[%emt 0:00:33]} Rc8 {[%emt 0:00:59]} 10. Bb2 {[%emt 0:00:33]} c5 {[%emt 0:01:22]} 11. e3 {[%emt 0:01:17]} Bd6 {[%emt 0:06:21]} 12. Re1 {[%emt 0:06:12]} Qc7 {[%emt 0:00:51]} 13. Rc1 {[%emt 0:05:00]} Qb8 {[%emt 0:00:37]} 14. e4 {[%emt 0:03:56]} dxe4 {[%emt 0:04:44]} 15. Ng5 {[%emt 0:00:27]} cxd4 {[%emt 0:00:04]} 16. Ndxe4 {[%emt 0:01:37]} Bxe4 {[%emt 0:02:30]} 17. Bxe4 {[%emt 0:05:08]} e5 {[%emt 0:02:08]} 18. Bb1 {[%emt 0:12:54]} h6 {[%emt 0:04:30]} 19. Ne4 {[%emt 0:07:00]} Rfe8 {[%emt 0:02:44]} 20. Qf3 {[%emt 0:02:48]} Rcd8 {[%emt 0:09:34]} 21. Rcd1 {[%emt 0:03:19]} Nxe4 {[%emt 0:08:44]} 22. Rxe4 {[%emt 0:01:26]} Qa8 {[%emt 0:13:13]} 23. Qf5 {[%emt 0:06:09]} g6 {[%emt 0:00:05]} 24. Qh3 {[%emt 0:01:13]} h5 {[%emt 0:00:02]} 25. Re2 {[%emt 0:09:26]} Qf3 {[%emt 0:02:50]} 26. Rde1 {[%emt 0:02:57]} Nf6 {[%emt 0:13:00]} 27. b4 {[%emt 0:04:57]} d3 {[%emt 0:01:28]} 28. Rd2 {[%emt 0:04:22]} Ne4 {[%emt 0:00:30]} 29. Re3 {[%emt 0:03:57]} Nxd2 {[%emt 0:00:25]} 30. Rxf3 {[%emt 0:00:11]} Nxf3+ {[%emt 0:00:01]} 31. Kh1 {[%emt 0:00:25]} d2 {[%emt 0:01:02]} 32. Bc2 {[%emt 0:02:04]} Ne1 {[%emt 0:00:12]} 33. Bd1 {[%emt 0:00:48]} Nd3 {[%emt 0:00:02]} 34. Bc2 Ne1 35. Bc3 e4 36. Bxd2 Nxc2 0-1

[Event "IIFL Wealth 4th Mumbai Open"]
[Site "Mumbai"]
[Date "2019.01.07"]
[Round "9"]
[White "Sa, Kannan"]
[Black "Raghav, Srivathsav V"]
[Result "1-0"]
[ECO "E81"]
[WhiteElo "2069"]
[BlackElo "2056"]
[Annotator "NA RC"]
[PlyCount "69"]
[EventDate "2018.12.30"]
[EventType "swiss"]
[EventCountry "IND"]
[SourceTitle "playchess.com"]
[Source "ChessBase"]
[SourceQuality "1"]
[TimeControl "40/5400+30:1800+30"]

1. d4 {[%emt 0:12:29]} Nf6 {[%emt 0:00:00]} 2. c4 {[%emt 0:00:08]} g6 {[%emt 0:00:00]} 3. Nc3 {[%emt 0:00:02]} Bg7 {[%emt 0:00:04]} 4. e4 {[%emt 0:00:09]} d6 {[%emt 0:00:08]} 5. f3 {[%emt 0:00:36]} O-O {[%emt 0:00:11]} 6. Be3 {[%emt 0:00:10]} c5 {[%emt 0:00:12]} 7. d5 {[%emt 0:00:28]} a6 {[%emt 0:01:00]} 8. Qd2 {[%emt 0:01:52]} Nbd7 {[%emt 0:00:21]} 9. Bh6 {[%emt 0:02:29]} Re8 {[%emt 0:05:05]} 10. Bxg7 {[%emt 0:03:13]} Kxg7 {[%emt 0:00:24]} 11. Bd3 {[%emt 0:01:24]} Ne5 {[%emt 0:00:11]} 12. Nge2 {[%emt 0:00:18]} e6 {[%emt 0:01:30]} 13. O-O {[%emt 0:01:17]} exd5 {[%emt 0:00:53]} 14. Nxd5 {[%emt 0:02:51]} Nxd5 {[%emt 0:01:09]} 15. exd5 {[%emt 0:02:11]} b5 {[%emt 0:03:39]} 16. b3 {[%emt 0:01:35]} Kg8 {[%emt 0:01:36]} 17. Rfe1 {[%emt 0:08:47]} Bd7 {[%emt 0:13:43]} 18. Ng3 {[%emt 0:10:51]} f5 {[%emt 0:02:08]} 19. Bf1 {[%emt 0:03:27]} Qh4 {[%emt 0:03:14]} 20. Rac1 {[%emt 0:00:36]} bxc4 {[%emt 0:23:10]} 21. Bxc4 {[%emt 0:01:15]} a5 {[%emt 0:09:49]} 22. f4 {[%emt 0:02:46]} Qh6 {[%emt 0:02:54]} 23. Nf1 {[%emt 0:00:17]} Nxc4 {[%emt 0:00:33]} 24. bxc4 {[%emt 0:00:35]} Qg7 {[%emt 0:10:37]} 25. Kf2 {[%emt 0:03:42]} Rxe1 {[%emt 0:02:25]} 26. Rxe1 {[%emt 0:00:13]} Rb8 {[%emt 0:00:44]} 27. Re2 {[%emt 0:04:42]} Rb4 {[%emt 0:01:32]} 28. g3 {[%emt 0:02:31]} a4 {[%emt 0:03:32]} 29. a3 {[%emt 0:04:30]} Rxc4 {[%emt 0:01:43]} 30. Qa5 {[%emt 0:00:14]} Qf8 {[%emt 0:02:23]} 31. Qc7 {[%emt 0:01:14]} Be8 {[%emt 0:01:30]} 32. Re6 {[%emt 0:04:57]} Re4 {[%emt 0:08:50]} 33. Ne3 {[%emt 0:02:13]} Bf7 {[%emt 0:00:48]} 34. Rxd6 {[%emt 0:00:55]} Qh6 {[%emt 0:00:27]} 35. h4 {[%emt 0:01:51]} 1-0

[Event "IIFL Wealth 4th Mumbai Open"]
[Site "Mumbai"]
[Date "2019.01.07"]
[Round "9"]
[White "Thatte Ashish P"]
[Black "Apoorv, Kamble"]
[Result "1-0"]
[ECO "D43"]
[WhiteElo "1957"]
[BlackElo "1458"]
[Annotator "NA RC"]
[PlyCount "79"]
[EventDate "2018.12.30"]
[EventType "swiss"]
[EventCountry "IND"]
[SourceTitle "playchess.com"]
[Source "ChessBase"]
[SourceQuality "1"]
[TimeControl "40/5400+30:1800+30"]

1. d4 {[%emt 0:00:28]} Nf6 {[%emt 0:00:00]} 2. c4 {[%emt 0:00:08]} e6 {[%emt 0:00:03]} 3. Nf3 {[%emt 0:00:09]} d5 {[%emt 0:00:54]} 4. Nc3 {[%emt 0:00:13]} c6 {[%emt 0:00:06]} 5. cxd5 {[%emt 0:00:11]} exd5 {[%emt 0:00:11]} 6. Bg5 {[%emt 0:00:11]} h6 {[%emt 0:00:43]} 7. Bh4 Bd6 {[%emt 0:02:43]} 8. Qc2 {[%emt 0:01:23]} O-O {[%emt 0:05:14]} 9. e3 {[%emt 0:00:41]} Nbd7 {[%emt 0:06:56]} 10. Bd3 {[%emt 0:00:12]} Re8 {[%emt 0:05:24]} 11. O-O {[%emt 0:01:36]} Be7 {[%emt 0:03:21]} 12. Bg3 {[%emt 0:07:01]} Nh5 {[%emt 0:04:31]} 13. Nxd5 {[%emt 0:02:39]} Nxg3 {[%emt 0:01:53]} 14. Nxe7+ {[%emt 0:00:17]} Qxe7 {[%emt 0:00:10]} 15. hxg3 {[%emt 0:00:08]} c5 {[%emt 0:02:12]} 16. Bb5 {[%emt 0:18:07]} a6 {[%emt 0:02:58]} 17. Bxd7 {[%emt 0:00:37]} Bxd7 {[%emt 0:00:08]} 18. Qxc5 {[%emt 0:00:08]} Qe4 {[%emt 0:05:19]} 19. Rac1 {[%emt 0:25:36]} Rac8 {[%emt 0:05:25]} 20. Qd6 {[%emt 0:01:27]} Bb5 {[%emt 0:01:51]} 21. Rfe1 {[%emt 0:04:30]} Rc6 {[%emt 0:01:22]} 22. Qf4 {[%emt 0:04:17]} Qd5 {[%emt 0:01:02]} 23. Rxc6 {[%emt 0:00:08]} Bxc6 {[%emt 0:00:09]} 24. b3 {[%emt 0:00:28]} g5 {[%emt 0:08:53]} 25. e4 {[%emt 0:17:45]} Rxe4 {[%emt 0:12:53]} 26. Qxe4 {[%emt 0:00:02]} Qxe4 {[%emt 0:00:11]} 27. Rxe4 {[%emt 0:00:15]} Bxe4 {[%emt 0:00:02]} 28. Nd2 {[%emt 0:01:43]} Bd3 {[%emt 0:02:23]} 29. f3 {[%emt 0:00:39]} Kf8 {[%emt 0:05:45]} 30. Kf2 {[%emt 0:00:17]} Bg6 {[%emt 0:00:51]} 31. Ke3 {[%emt 0:00:38]} Ke7 {[%emt 0:01:40]} 32. d5 {[%emt 0:01:21]} b6 {[%emt 0:05:01]} 33. Kd4 {[%emt 0:00:02]} f6 {[%emt 0:01:42]} 34. Nc4 {[%emt 0:05:05]} Bb1 {[%emt 0:04:40]} 35. a3 {[%emt 0:00:19]} Bc2 {[%emt 0:00:48]} 36. b4 {[%emt 0:00:10]} b5 {[%emt 0:02:40]} 37. Ne3 {[%emt 0:00:08]} Bb1 {[%emt 0:01:38]} 38. Kc5 {[%emt 0:00:31]} Bd3 {[%emt 0:00:21]} 39. Kc6 {[%emt 0:01:58]} Kd8 {[%emt 0:01:00]} 40. Kd6 {[%emt 0:00:00]} 1-0

[Event "IIFL Wealth 4th Mumbai Open"]
[Site "Mumbai"]
[Date "2019.01.07"]
[Round "9"]
[White "Devesh Anand Naik"]
[Black "Samrat, Ghorai"]
[Result "1/2-1/2"]
[ECO "B24"]
[WhiteElo "1830"]
[BlackElo "1984"]
[Annotator "NA RC"]
[PlyCount "34"]
[EventDate "2018.12.30"]
[EventType "swiss"]
[EventCountry "IND"]
[SourceTitle "playchess.com"]
[Source "ChessBase"]
[SourceQuality "1"]
[TimeControl "40/5400+30:1800+30"]

1. e4 {[%emt 0:00:00]} c5 {[%emt 0:00:00]} 2. Nc3 {[%emt 0:00:00]} Nc6 {[%emt 0:00:00]} 3. Bb5 {[%emt 0:00:00]} Nd4 {[%emt 0:00:00]} 4. Bc4 {[%emt 0:00:00]} e6 {[%emt 0:00:02]} 5. Nf3 {[%emt 0:00:00]} Nf6 {[%emt 0:00:07]} 6. e5 {[%emt 0:01:05]} d5 {[%emt 0:01:24]} 7. Nxd4 {[%emt 0:04:52]} cxd4 {[%emt 0:06:37]} 8. Bb5+ {[%emt 0:00:12]} Nd7 {[%emt 0:01:26]} 9. Ne2 {[%emt 0:00:43]} Qg5 {[%emt 0:04:22]} 10. Nxd4 Qxe5+ {[%emt 0:00:30]} 11. Ne2 {[%emt 0:02:27]} Qg5 12. Nd4 Qe5+ {[%emt 0:00:32]} 13. Ne2 {[%emt 0:00:05]} Qg5 {[%emt 0:00:04]} 14. Ng3 {[%emt 0:01:42]} Qe5+ {[%emt 0:00:04]} 15. Ne2 {[%emt 0:00:04]} Qg5 {[%emt 0:00:02]} 16. Ng3 {[%emt 0:00:05]} Qe5+ {[%emt 0:00:02]} 17. Ne2 {[%emt 0:00:06]} Qg5 1/2-1/2

[Event "IIFL Wealth 4th Mumbai Open"]
[Site "Mumbai"]
[Date "2019.01.07"]
[Round "9"]
[White "Unni, C. S."]
[Black "Amrit, Raunak"]
[Result "1-0"]
[ECO "D11"]
[WhiteElo "1827"]
[BlackElo "1410"]
[Annotator "NA RC"]
[PlyCount "91"]
[EventDate "2018.12.30"]
[EventType "swiss"]
[EventCountry "IND"]
[SourceTitle "playchess.com"]
[Source "ChessBase"]
[SourceQuality "1"]
[TimeControl "40/5400+30:1800+30"]

1. d4 {[%emt 0:04:14]} d5 {[%emt 0:00:00]} 2. c4 {[%emt 0:00:07]} c6 {[%emt 0:00:00]} 3. Nf3 {[%emt 0:00:06]} Nf6 {[%emt 0:00:00]} 4. g3 {[%emt 0:00:07]} e6 {[%emt 0:00:00]} 5. Bg2 {[%emt 0:00:06]} dxc4 {[%emt 0:00:10]} 6. a4 {[%emt 0:00:34]} Bb4+ {[%emt 0:00:18]} 7. Bd2 {[%emt 0:00:19]} Bxd2+ {[%emt 0:00:13]} 8. Nbxd2 {[%emt 0:00:03]} O-O {[%emt 0:00:10]} 9. Nxc4 {[%emt 0:00:09]} Nbd7 {[%emt 0:00:20]} 10. O-O {[%emt 0:00:08]} Nb6 {[%emt 0:00:03]} 11. Nce5 {[%emt 0:00:59]} Nbd7 {[%emt 0:00:44]} 12. a5 {[%emt 0:02:19]} Nxe5 {[%emt 0:00:37]} 13. Nxe5 {[%emt 0:00:25]} Nd7 {[%emt 0:01:27]} 14. Nd3 {[%emt 0:01:58]} Qf6 {[%emt 0:01:25]} 15. e3 {[%emt 0:00:09]} e5 {[%emt 0:01:05]} 16. dxe5 {[%emt 0:03:27]} Nxe5 {[%emt 0:00:07]} 17. Nxe5 {[%emt 0:00:10]} Qxe5 {[%emt 0:00:05]} 18. Qb3 {[%emt 0:00:09]} Qe7 {[%emt 0:00:24]} 19. a6 {[%emt 0:00:47]} Rb8 {[%emt 0:03:53]} 20. axb7 {[%emt 0:04:58]} Rxb7 {[%emt 0:00:05]} 21. Qa3 {[%emt 0:00:13]} Qf6 {[%emt 0:01:13]} 22. Rac1 {[%emt 0:06:57]} Bd7 {[%emt 0:01:05]} 23. b4 {[%emt 0:02:06]} Rfb8 {[%emt 0:00:33]} 24. Rc4 {[%emt 0:00:18]} Rc7 {[%emt 0:02:22]} 25. Rfc1 {[%emt 0:00:22]} g6 {[%emt 0:06:57]} 26. Rc5 {[%emt 0:04:52]} Qe7 {[%emt 0:01:53]} 27. Qc3 {[%emt 0:00:09]} Rcb7 {[%emt 0:02:16]} 28. Bxc6 {[%emt 0:04:05]} Rxb4 {[%emt 0:03:52]} 29. Bxd7 {[%emt 0:00:13]} Qxd7 {[%emt 0:00:31]} 30. Rc7 {[%emt 0:00:11]} Qf5 {[%emt 0:08:33]} 31. Rxa7 {[%emt 0:03:22]} Qf3 {[%emt 0:00:26]} 32. Rc7 {[%emt 0:00:52]} Rb2 {[%emt 0:01:39]} 33. Rc8+ {[%emt 0:00:07]} Rxc8 {[%emt 0:00:10]} 34. Qxc8+ {[%emt 0:00:09]} Kg7 {[%emt 0:00:06]} 35. Qc3+ {[%emt 0:00:10]} Qf6 {[%emt 0:00:04]} 36. Qxf6+ {[%emt 0:00:17]} Kxf6 {[%emt 0:00:02]} 37. Rc7 {[%emt 0:00:50]} Rb6 {[%emt 0:00:21]} 38. h4 {[%emt 0:00:20]} h5 {[%emt 0:01:04]} 39. Kg2 {[%emt 0:00:19]} Re6 {[%emt 0:01:22]} 40. Kf3 {[%emt 0:00:00]} Re7 {[%emt 0:00:00]} 41. Rc6+ {[%emt 0:02:33]} Re6 {[%emt 0:00:24]} 42. Rxe6+ {[%emt 0:00:55]} Kxe6 {[%emt 0:00:05]} 43. Kf4 {[%emt 0:00:47]} f5 {[%emt 0:01:01]} 44. Kg5 {[%emt 0:00:19]} Kf7 {[%emt 0:00:09]} 45. f3 {[%emt 0:00:09]} Kg7 {[%emt 0:00:31]} 46. e4 {[%emt 0:00:33]} 1-0

[Event "IIFL Wealth 4th Mumbai Open"]
[Site "Mumbai"]
[Date "2019.01.07"]
[Round "9"]
[White "Barde Om"]
[Black "Akshit Jha"]
[Result "1-0"]
[ECO "B40"]
[WhiteElo "1801"]
[BlackElo "1604"]
[Annotator "NA RC"]
[PlyCount "189"]
[EventDate "2018.12.30"]
[EventType "swiss"]
[EventCountry "IND"]
[SourceTitle "playchess.com"]
[Source "ChessBase"]
[SourceQuality "1"]
[TimeControl "40/5400+30:1800+30"]

1. e4 c5 2. Nf3 e6 3. c3 d5 4. exd5 exd5 5. d4 Nf6 6. Be2 Bd6 7. O-O O-O 8. Bg5 Be6 9. Nbd2 Nc6 10. dxc5 Bxc5 11. Nb3 Bd6 12. Nbd4 Nxd4 13. Qxd4 Be7 14. Rad1 h6 15. Bh4 Qa5 16. a3 a6 17. Qd3 b5 18. Nd4 Qb6 19. Rfe1 Rfe8 20. Bf3 Bd8 21. Bg3 Bc7 22. Rd2 Bg4 23. Rde2 Bxf3 24. Qxf3 Ne4 25. Nf5 Bxg3 26. Nxg3 Qc6 27. Nxe4 dxe4 28. Rxe4 Rxe4 29. Qxe4 Qxe4 30. Rxe4 Rd8 31. Rd4 Ra8 32. Kf1 Kf8 33. Ke2 Ke7 34. Kd2 Rc8 35. Kc2 Ke6 36. Kb3 f5 37. a4 Ke5 38. axb5 axb5 39. Kb4 Rb8 40. Rd2 g5 41. c4 bxc4+ 42. Kxc4 Rc8+ 43. Kb5 Rb8+ 44. Ka6 Ra8+ 45. Kb7 Ra1 46. Kc6 Rb1 47. Kb5 f4 48. f3 h5 49. h3 Kf5 50. b4 g4 51. h4 gxf3 52. gxf3 Rb3 53. Rf2 Ke5 54. Kc4 Rb1 55. Re2+ Kf5 56. Rc2 Rf1 57. Rc3 Ke5 58. Kc5 Re1 59. b5 Re3 60. Kc4 Re1 61. b6 Rb1 62. Rb3 Rc1+ 63. Kd3 Rd1+ 64. Ke2 Rd8 65. b7 Rb8 66. Kd3 Kd5 67. Rb1 Kc6 68. Ke4 Rxb7 69. Rxb7 Kxb7 70. Kxf4 Kc6 71. Kg5 Kd5 72. Kxh5 Ke5 73. Kg6 Kf4 74. h5 Kxf3 75. h6 Ke4 76. h7 Kd4 77. h8=Q+ Ke4 78. Qd8 Ke5 79. Qd3 Ke6 80. Qe4+ Kd6 81. Qf5 Kc6 82. Kg5 Kd6 83. Kf4 Kc6 84. Ke4 Kd6 85. Qd5+ Ke7 86. Qc6 Kf7 87. Kf5 Ke7 88. Qe6+ Kd8 89. Qf7 Kc8 90. Ke5 Kb8 91. Kd6 Ka8 92. Kc6 Kb8 93. Kb6 Kc8 94. Qe7 Kb8 95. Qd8# 1-0